bitfinex/quotes_ETHUSD_20240926
["timestamp","ask_amount","ask_price","bid_price","bid_amount"]
[1727376182633,0.35447684,2647.1,2646.7,3.77822]
[1727376182634,0.35447684,2647.1,2646.7,3.7782]
[1727376182846,3.1288452,2647.1,2646.7,3.7782]
[1727376183134,2.77436836,2647.0,2646.7,3.7782]
[1727376183344,3.08725288,2646.9,2646.7,3.7782]
[1727376183487,2.77436836,2647.0,2646.7,3.7782]
[1727376184536,0.7704,2646.9,2646.5,3.77856]
[1727376184719,0.7704,2646.9,2646.6,3.7784]
[1727376184919,1.53809652,2646.9,2646.7,3.77827]
[1727376185154,1.53809652,2646.9,2646.7,3.7782]
[1727376186295,0.7704,2646.9,2646.8,3.77814]
[1727376186510,1.12487684,2647.1,2646.9,3.77799]
[1727376188521,1.12487684,2647.1,2646.9,7.55592]
[1727376188721,0.7704,2647.1,2646.9,7.55592]
[1727376188957,0.7704,2647.1,2646.9,3.77793]
[1727376189155,0.7704,2647.1,2646.9,7.55585]
[1727376189323,0.7704,2647.1,2646.9,3.77792]
[1727376189668,0.7704,2647.1,2646.9,7.55584]
[1727376189967,3.54476836,2647.3,2647.1,3.77769]
[1727376190126,0.06575549,2647.5,2647.3,3.77736]
[1727376190127,3.54476836,2647.5,2647.3,3.77736]
[1727376192346,3.54476836,2647.5,2647.3,3.77733]
[1727376192573,4.26642462,2647.5,2647.3,3.77733]
[1727376192775,4.26642462,2647.5,2647.4,3.77729]
[1727376192984,0.39457158,2647.7,2647.3,3.77733]
[1727376192985,0.39457158,2647.7,2647.6,3.777]
[1727376193295,2.77436836,2647.9,2647.8,3.77672]
[1727376193440,3.27722262,2648.2,2647.8,3.77672]
[1727376193441,2.77436836,2648.2,2647.8,3.77666]
[1727376193627,0.40476226,2648.1,2647.9,3.77657]
[1727376193832,0.40476226,2648.1,2647.9,3.77648]
[1727376194167,0.31791306,2648.0,2647.7,3.77685]
[1727376194368,0.7704,2647.9,2647.3,3.77734]
[1727376194552,0.3859255,2647.8,2647.5,3.77713]
[1727376194878,3.15686747,2647.8,2647.6,3.777]
[1727376195229,0.3859255,2647.8,2647.6,3.777]
[1727376198174,0.3859255,2647.8,2647.4,3.77725]
[1727376198480,0.3859255,2647.8,2647.6,3.77699]
[1727376198775,3.08885503,2648.0,2647.6,3.77699]
[1727376198776,2.77182414,2647.9,2647.6,3.77699]
[1727376199135,2.77182414,2647.9,2647.6,7.55391]
[1727376199676,2.77182414,2647.9,2647.6,3.77692]
[1727376200171,3.0897372,2648.0,2647.6,7.55383]
[1727376200395,0.80693995,2647.9,2647.6,3.77691]
[1727376201086,3.57876409,2647.9,2647.6,3.77691]
[1727376201387,3.57876409,2647.9,2647.6,3.77689]
[1727376201597,3.0897372,2648.0,2647.8,3.77672]
[1727376201786,3.0897372,2648.0,2647.6,3.77691]
[1727376201990,3.0897372,2648.0,2647.7,3.77674]
[1727376202198,2.77182414,2648.0,2647.9,3.77657]
[1727376202351,3.8101216,2648.4,2647.9,3.77657]
[1727376202352,2.77182414,2648.2,2647.9,3.77657]
[1727376204362,2.77182414,2648.2,2647.8,0.809]
[1727376204565,0.65478541,2648.1,2647.8,0.809]
[1727376204764,6.54724139,2648.2,2647.8,4.58572]
[1727376205000,2.77106139,2648.2,2648.0,3.77643]
[1727376205405,2.77106139,2648.3,2648.0,3.77643]
[1727376205567,2.77106139,2648.2,2648.0,3.77643]
[1727376206406,2.77106139,2648.2,2647.9,3.77657]
[1727376206827,3.83637232,2648.3,2647.9,3.77657]
[1727376207126,2.77106139,2648.2,2647.9,3.77657]
[1727376207422,3.83637232,2648.3,2647.9,3.77657]
[1727376207623,3.57630922,2648.2,2647.9,3.77657]
[1727376207987,3.57630922,2648.2,2647.8,4.58572]
[1727376208189,0.80524783,2648.2,2647.9,3.77656]
[1727376208883,0.80524783,2648.2,2648.0,3.7764]
[1727376209528,0.80524783,2648.2,2647.9,3.77656]
[1727376209919,0.80524783,2648.2,2647.9,3.77649]
[1727376210221,0.80524783,2648.2,2648.0,3.77631]
[1727376210440,3.83534042,2648.3,2648.0,3.77631]
[1727376210796,3.83534042,2648.3,2647.9,3.77649]
[1727376211031,3.83534042,2648.3,2647.9,7.55298]
[1727376211192,3.83534042,2648.3,2648.0,3.77635]
[1727376211694,1.06531093,2648.3,2648.1,3.77628]
[1727376211894,3.60288109,2648.4,2648.0,3.77642]
[1727376212139,2.77002949,2648.3,2648.0,3.77642]
[1727376212427,3.60288109,2648.4,2648.0,3.77642]
[1727376212735,2.77002949,2648.3,2648.0,3.77642]
[1727376212936,2.77002949,2648.3,2648.1,3.77628]
[1727376213129,3.60288109,2648.4,2648.1,3.77628]
[1727376213332,5.04223674,2648.4,2647.9,3.77649]
[1727376213517,12.29523248,2648.4,2647.9,3.77655]
[1727376213907,3.7761,2648.3,2647.9,3.77655]
[1727376214257,3.7761,2648.3,2647.4,3.77721]
[1727376214258,4.54435,2648.1,2647.6,3.77693]
[1727376214397,3.47711574,2647.8,2647.5,3.77714]
[1727376214601,3.47711574,2648.0,2647.7,3.77686]
[1727376214838,5.76375101,2648.1,2647.6,3.77692]
[1727376215153,1.20108962,2648.0,2647.6,3.77692]
[1727376215439,0.768,2647.9,2647.5,3.77707]
[1727376216835,0.768,2647.9,2647.4,3.7772]
[1727376217142,0.768,2647.9,2647.4,3.77719]
[1727376217348,0.768,2647.9,2647.5,3.77713]
[1727376217509,0.35380295,2647.8,2647.5,3.77713]
[1727376217706,0.35380295,2647.8,2647.6,3.7769]
[1727376217900,0.768,2647.9,2647.6,3.7769]
[1727376219845,3.98866877,2648.1,2647.6,3.7769]
[1727376220046,4.75666877,2648.1,2647.8,3.77669]
[1727376220206,0.74657845,2648.0,2647.8,7.55338]
[1727376220403,0.74657845,2648.0,2647.8,3.77669]
[1727376222011,0.74657845,2648.0,2647.7,3.77685]
[1727376222204,0.74657845,2648.0,2647.8,3.77669]
[1727376223114,4.75666877,2648.1,2647.8,3.77669]
[1727376223325,4.75672504,2648.1,2647.8,3.77669]
[1727376224145,3.98872504,2648.1,2647.9,3.77655]
[1727376224451,3.16261039,2648.3,2648.0,3.77638]
[1727376225600,3.16261039,2648.3,2647.3,3.47711574]
[1727376225877,3.16261039,2648.3,2647.0,7.34]
[1727376225878,0.0342516,2648.4,2648.2,4.58254]
[1727376226080,0.0342516,2648.4,2648.3,3.776]
[1727376226438,0.0342516,2648.4,2648.2,4.58254]
[1727376226643,0.0342516,2648.4,2648.2,4.58247]
[1727376226843,0.0342516,2648.4,2648.2,3.77607]
[1727376227040,0.0342516,2648.4,2648.0,4.58275]
[1727376227248,5.99265674,2648.4,2648.0,4.58275]
[1727376227452,2.21675674,2648.4,2648.0,8.3591]
[1727376228080,2.21675674,2648.4,2648.0,4.58275]
[1727376228383,0.0342516,2648.4,2648.2,3.77613]
[1727376228581,0.0342516,2648.4,2648.3,3.776]
[1727376231049,0.0342516,2648.4,2648.2,7.55226]
[1727376231247,0.0342516,2648.4,2648.2,3.77613]
[1727376231699,0.0342516,2648.4,2648.1,3.77628]
[1727376231880,5.31622509,2648.4,2648.1,3.77625]
[1727376232042,5.31622509,2648.4,2648.0,3.77641]
[1727376232446,1.83910935,2648.4,2647.9,0.8064]
[1727376232680,1.83910935,2648.4,2648.0,3.77642]
[1727376233075,1.83910935,2648.4,2648.0,7.55277]
[1727376233290,0.83834395,2648.3,2648.0,7.55277]
[1727376234160,0.83834395,2648.3,2648.1,3.77628]
[1727376235200,0.83834395,2648.3,2648.0,3.77635]
[1727376235360,0.8135516,2648.4,2648.2,3.77614]
[1727376235760,3.58210172,2648.4,2648.0,3.77635]
[1727376235960,3.58210172,2648.4,2648.1,3.77629]
[1727376236263,4.30802347,2648.4,2648.1,3.77629]
[1727376236891,4.30802347,2648.4,2648.0,3.77641]
[1727376237204,4.30802347,2648.4,2648.2,3.77613]
[1727376237971,4.30802347,2648.4,2648.1,3.77627]
[1727376238181,4.31274339,2648.4,2648.1,3.77627]
[1727376240288,0.80884734,2648.3,2648.1,3.77627]
[1727376240463,3.58211738,2648.3,2648.1,3.77627]
[1727376241070,0.80884734,2648.3,2648.1,3.77627]
[1727376241323,4.31274339,2648.4,2648.2,3.77614]
[1727376241602,4.31333477,2648.4,2648.2,3.77614]
[1727376242476,2.77386142,2648.3,2648.2,3.77614]
[1727376242677,2.77386142,2648.3,2648.0,7.55272]
[1727376242900,3.91043028,2648.3,2648.0,3.77631]
[1727376243102,2.77386142,2648.3,2648.0,3.77631]
[1727376243400,2.77386142,2648.3,2648.2,3.77614]
[1727376244307,2.80811302,2648.4,2648.3,3.776]
[1727376244511,0.0342516,2648.4,2648.3,3.776]
[1727376248074,0.0342516,2648.4,2648.2,4.55514]
[1727376248275,3.59797675,2648.4,2648.2,3.77614]
[1727376248516,0.8243516,2648.4,2648.2,3.77614]
[1727376248713,3.59797675,2648.4,2648.1,3.77628]
[1727376249212,7.25324574,2648.3,2647.7,0.779]
[1727376249525,0.7901,2648.0,2647.6,3.77698]
[1727376249691,0.7901,2648.0,2647.7,3.77684]
[1727376250076,3.56372515,2648.0,2647.7,3.77684]
[1727376250905,0.7901,2648.0,2647.7,3.77684]
[1727376251419,3.5642276,2648.0,2647.7,3.77684]
[1727376251927,3.5642276,2648.0,2647.7,7.55362]
[1727376252286,3.5642276,2648.0,2647.7,3.77678]
[1727376252485,0.7901,2648.0,2647.7,3.77678]
[1727376253123,3.5642276,2648.0,2647.7,3.77678]
[1727376254423,3.5642276,2648.0,2647.7,7.55356]
[1727376254800,0.7901,2648.0,2647.7,7.55356]
[1727376255000,1.52413776,2648.0,2647.7,3.77678]
[1727376255206,3.47711574,2647.9,2647.2,8.119]
[1727376255436,6.5507576,2647.9,2647.4,3.77723]
[1727376255643,2.7741276,2647.8,2647.5,3.77713]
[1727376256221,4.23364951,2647.9,2647.5,7.5542]
[1727376256758,1.45944233,2647.9,2647.4,3.77727]
[1727376256936,3.77664,2647.9,2647.5,3.77711]
[1727376257137,6.55084718,2647.9,2647.5,3.77711]
[1727376258550,10.32753718,2647.9,2647.2,4.55648]
[1727376258739,10.32753718,2647.9,2647.4,7.5545]
[1727376258740,6.55084718,2647.9,2647.4,7.5545]
[1727376259059,8.3380257,2647.9,2647.4,3.77723]
[1727376259211,8.3380257,2647.9,2647.5,3.77714]
[1727376259415,11.81514144,2647.9,2647.4,3.77727]
[1727376259638,3.68701975,2647.8,2647.4,3.77727]
[1727376260141,7.46373975,2647.8,2647.4,3.77727]
[1727376260345,3.77696,2647.7,2647.2,4.55646]
[1727376260654,6.55116718,2647.7,2647.2,8.33395]
[1727376260951,7.46373975,2647.8,2647.3,3.7774]
[1727376261160,0.81666483,2647.7,2647.3,3.7774]
[1727376261313,0.81666483,2647.7,2647.4,3.77727]
[1727376261714,0.761,2647.6,2647.4,3.77727]
[1727376262255,0.761,2647.6,2646.7,7.34]
[1727376262256,4.43879485,2647.6,2647.1,3.7777]
[1727376262454,3.77723,2647.5,2647.1,3.7777]
[1727376262812,7.25434574,2647.5,2647.1,3.7777]
[1727376263022,3.47711574,2647.3,2646.9,3.77791]
[1727376263223,3.47711574,2647.3,2646.7,3.77821]
[1727376263224,3.47711574,2647.1,2646.7,3.77821]
[1727376263426,7.31241465,2647.2,2646.7,3.7782]
[1727376263679,4.53871,2647.2,2646.7,3.7782]
[1727376263843,7.31241465,2647.2,2646.7,3.7782]
[1727376264435,3.77778,2647.1,2646.5,7.55693]
[1727376264746,3.77772,2647.1,2646.6,3.77841]
[1727376265052,3.77772,2647.1,2646.7,3.77826]
[1727376265439,3.77772,2647.1,2646.5,3.77846]
[1727376265840,3.77772,2647.1,2646.6,3.77836]
[1727376269053,0.761,2647.2,2646.7,3.77822]
[1727376269355,3.77781,2647.1,2646.5,7.55694]
[1727376269529,3.77781,2647.1,2646.6,3.77835]
[1727376270679,7.25492574,2647.1,2646.6,3.77835]
[1727376270892,11.03272574,2647.1,2646.6,3.77835]
[1727376271051,3.47711574,2646.7,2646.2,3.77898]
[1727376271378,8.04130574,2646.7,2646.3,3.77884]
[1727376271549,4.26301574,2646.7,2646.3,3.77884]
[1727376272383,3.77844,2646.6,2646.2,3.77898]
[1727376272595,0.7859,2646.5,2646.2,3.77898]
[1727376272895,0.7859,2646.0,2645.5,4.59443]
[1727376273188,4.5653,2646.0,2645.5,4.59443]
[1727376273781,0.7859,2646.0,2645.5,4.59443]
[1727376275171,0.7859,2646.0,2645.5,8.37435]
[1727376275488,0.7859,2646.0,2645.5,4.59442]
[1727376275649,0.7859,2646.0,2645.6,3.77985]
[1727376276182,4.56521,2646.0,2645.5,8.37431]
[1727376276540,4.56521,2646.0,2645.6,3.77986]
[1727376278079,5.74734657,2646.0,2645.6,3.77986]
[1727376278582,5.74734657,2646.0,2645.5,0.8145]
[1727376278583,5.74734657,2646.0,2645.5,3.77999]
[1727376279078,9.52670657,2646.0,2645.5,3.77999]
[1727376279583,0.7859,2645.6,2645.2,3.818795]
[1727376279881,4.56577,2645.6,2645.2,3.818795]
[1727376280578,4.56577,2645.6,2645.2,7.599195]
[1727376280579,0.7859,2645.6,2645.2,7.599195]
[1727376280878,3.77975,2645.7,2645.2,3.818795]
[1727376281086,4.56548,2645.8,2645.3,3.78021]
[1727376281281,3.77975,2645.7,2645.2,0.038395]
[1727376281484,3.77975,2645.7,2645.3,3.78028]
[1727376284376,0.7859,2645.8,2645.3,3.78028]
[1727376284679,3.77973,2645.7,2645.3,3.78019]
[1727376287270,4.55902941,2645.7,2645.2,3.818685]
[1727376287550,4.55902941,2645.7,2645.3,3.78027]
[1727376289788,3.77946,2645.9,2645.5,3.7799]
[1727376289988,3.77939,2646.0,2645.5,7.55981]
[1727376290767,3.77939,2646.0,2645.6,3.77985]
[1727376291884,3.77939,2646.0,2645.5,3.7799]
[1727376292084,4.61645,2646.0,2645.5,3.7799]
[1727376292278,8.39585,2646.0,2645.5,3.7799]
[1727376292791,3.77944,2645.9,2645.5,3.7799]
[1727376298861,0.83706,2646.0,2645.5,3.7799]
[1727376299062,4.61641,2646.0,2645.4,0.7549]
[1727376299290,3.77965,2645.8,2645.4,0.7549]
[1727376299487,4.59184,2645.7,2645.3,3.78017]
[1727376300362,9.98054081,2645.7,2645.2,0.038395]
[1727376300699,3.78005,2645.5,2645.2,0.038395]
[1727376301409,2.39647081,2645.3,2645.2,0.038395]
[1727376301612,6.17675081,2645.3,2645.2,0.038395]
[1727376302379,0.7877,2645.3,2645.2,0.038395]
[1727376302581,4.56798,2645.3,2645.2,0.038395]
[1727376303266,6.17675081,2645.3,2645.2,0.038395]
[1727376303475,7.17244089,2645.3,2645.2,0.038395]
[1727376303781,5.95902342,2645.3,2645.2,0.038395]
[1727376309710,37.23587942,2645.3,2645.2,0.038395]
[1727376309870,38.89296415,2645.3,2645.2,0.038395]
[1727376310531,37.23587942,2645.3,2645.2,0.038395]
[1727376310686,37.30175501,2645.3,2645.2,0.038395]
[1727376311374,30.74063201,2645.3,2645.2,0.038395]
[1727376311772,30.19590101,2645.3,2645.2,0.038395]
[1727376312000,6.02489901,2645.3,2645.2,0.038395]
[1727376312383,18.24089901,2645.3,2645.2,0.038395]
[1727376312787,8.43789901,2645.3,2645.2,0.038395]
[1727376314730,8.74615501,2645.3,2645.2,0.038395]
[1727376315036,6.02489901,2645.3,2645.2,0.038395]
[1727376315850,8.74444301,2645.3,2645.2,0.038395]
[1727376316804,6.02489901,2645.3,2645.2,0.038395]
[1727376317248,8.75129501,2645.3,2645.2,0.038395]
[1727376317416,6.02489901,2645.3,2645.2,0.038395]
[1727376317821,8.74444301,2645.3,2645.2,0.038395]
[1727376318235,6.02489901,2645.3,2645.2,0.038395]
[1727376318442,8.75814301,2645.3,2645.2,0.038395]
[1727376318856,6.02489901,2645.3,2645.2,0.038395]
[1727376319152,13.47185659,2645.3,2645.2,0.038395]
[1727376319513,10.70099401,2645.3,2645.2,0.038395]
[1727376319712,14.52407544,2645.3,2645.2,0.038395]
[1727376319929,18.01099567,2645.3,2645.2,0.038395]
[1727376320455,14.18791424,2645.3,2645.2,0.038395]
[1727376321063,16.95850957,2645.3,2645.2,0.038395]
[1727376321213,14.18791424,2645.3,2645.2,0.038395]
[1727376321712,13.14968524,2645.3,2645.2,0.038395]
[1727376321910,11.20848983,2645.3,2645.2,0.038395]
[1727376322127,8.79538983,2645.3,2645.2,0.038395]
[1727376322330,5.95902342,2645.3,2645.2,0.038395]
[1727376322674,5.56367008,2645.3,2645.2,0.038395]
[1727376322809,4.77597008,2645.3,2645.2,0.038395]
[1727376323227,6.55062564,2645.4,2645.2,0.038395]
[1727376323552,0.85536046,2645.5,2645.2,0.038395]
[1727376323553,3.84588046,2645.5,2645.2,0.038395]
[1727376323757,6.6163561,2645.5,2645.2,0.038395]
[1727376323933,3.84588046,2645.5,2645.2,0.038395]
[1727376324127,3.7802,2645.4,2645.2,0.038395]
[1727376324629,3.84588046,2645.5,2645.2,0.038395]
[1727376324830,0.06586046,2645.5,2645.2,3.818805]
[1727376325031,6.55044678,2645.7,2645.2,3.818805]
[1727376325233,6.55021678,2645.8,2645.4,0.8313]
[1727376325434,2.77063678,2645.8,2645.4,0.8313]
[1727376325671,2.77063678,2645.9,2645.5,3.77999]
[1727376325884,0.06584896,2646.0,2645.5,3.77993]
[1727376326043,3.77945,2645.9,2645.4,0.8313]
[1727376326857,3.77945,2645.9,2645.4,4.61142]
[1727376327472,3.7793,2646.0,2645.5,3.77999]
[1727376327859,3.77944,2645.9,2645.4,0.8313]
[1727376328041,3.77944,2645.9,2645.4,4.61136]
[1727376328384,8.49424046,2646.1,2645.5,3.7799]
[1727376328673,0.06584322,2646.1,2645.9,3.48692023]
[1727376328881,6.54886822,2646.7,2646.2,3.77895]
[1727376329181,7.05074103,2646.9,2646.2,3.77895]
[1727376329182,2.83631898,2647.0,2646.4,3.77864]
[1727376329387,3.64968945,2647.0,2646.3,0.8313]
[1727376329589,3.7783,2646.7,2646.3,0.8313]
[1727376330934,0.7895,2646.8,2646.0,0.7801]
[1727376330935,3.77858,2646.5,2646.0,0.7801]
[1727376331245,3.77874,2646.4,2646.0,0.7801]
[1727376331647,3.77858,2646.5,2646.0,0.7801]
[1727376331648,3.77887,2646.3,2646.0,0.7801]
[1727376331984,0.77222802,2646.4,2646.0,0.7801]
[1727376332187,3.77886,2646.3,2645.7,3.77969]
[1727376332336,3.77902,2646.2,2645.8,0.7801]
[1727376332684,4.6118088,2646.3,2645.8,4.55967]
[1727376332685,3.77886,2646.3,2645.8,4.55967]
[1727376333690,0.77222802,2646.4,2645.8,4.55967]
[1727376333838,0.4550848,2646.3,2645.8,4.55967]
[1727376334336,0.4550848,2646.3,2645.9,3.7794]
[1727376334788,0.45678,2646.6,2646.1,3.77904]
[1727376335073,0.45678,2646.6,2646.3,3.77884]
[1727376335288,4.56767,2646.8,2646.3,3.77884]
[1727376335778,8.34592,2646.8,2646.3,3.77884]
[1727376335979,8.34591,2646.8,2646.3,3.77884]
[1727376336534,4.56767,2646.8,2646.3,3.77884]
[1727376337083,8.3459,2646.8,2646.3,3.77884]
[1727376337286,4.56767,2646.8,2646.3,3.77884]
[1727376337879,3.77841,2646.7,2646.2,0.7801]
[1727376338287,3.77841,2646.7,2646.2,4.55909]
[1727376339284,4.56767,2646.8,2646.2,4.55909]
[1727376339285,8.34591,2646.8,2646.2,4.55909]
[1727376339456,3.77838,2646.7,2646.2,0.7801]
[1727376339982,3.77838,2646.7,2646.2,4.55907]
[1727376340160,6.37353651,2646.8,2646.3,3.77885]
[1727376340364,10.15179651,2646.8,2646.3,3.77885]
[1727376340565,4.68100091,2646.7,2646.3,3.77885]
[1727376340748,4.68100091,2646.7,2646.2,4.55906]
[1727376341292,1.80586651,2646.8,2646.4,3.7786]
[1727376341591,8.01652183,2647.0,2646.6,0.7801]
[1727376341888,5.39828231,2647.0,2646.6,0.7801]
[1727376342072,0.46065183,2647.0,2646.7,3.77827]
[1727376342257,3.77765,2647.2,2646.7,3.77827]
[1727376342458,3.77765,2647.2,2646.7,3.77819]
[1727376343473,3.77772,2647.1,2646.7,3.77819]
[1727376344052,3.7779,2647.0,2646.6,0.7801]
[1727376344894,3.7779,2647.0,2646.6,4.5585]
[1727376345267,3.7779,2647.0,2646.6,0.7801]
[1727376345455,3.77801,2646.9,2646.6,0.7801]
[1727376346291,4.15569,2647.0,2646.6,0.7801]
[1727376347061,7.93368,2647.0,2646.6,0.7801]
[1727376347592,8.75038,2647.0,2646.5,3.77844]
[1727376348053,4.97239,2647.0,2646.5,3.77844]
[1727376348876,8.75034,2647.0,2646.5,3.77844]
[1727376349150,4.97239,2647.0,2646.5,3.77844]
[1727376350169,4.15569,2647.0,2646.5,3.77844]
[1727376350510,3.77779,2647.1,2646.7,0.7611]
[1727376351114,3.77767,2647.2,2646.7,0.7611]
[1727376351115,3.77787,2647.0,2646.7,0.7611]
[1727376352196,3.77787,2647.0,2646.5,3.77856]
[1727376352500,4.59457,2647.0,2646.5,4.53966]
[1727376352697,3.77787,2647.0,2646.6,3.77839]
[1727376353406,4.6528687,2647.0,2646.6,3.77839]
[1727376353974,3.77801,2646.9,2646.5,4.53965]
[1727376354170,4.6528687,2647.0,2646.5,4.53965]
[1727376354788,4.6528687,2647.0,2646.5,4.53959]
[1727376354991,3.77772,2647.1,2646.7,0.7611]
[1727376357052,3.77812,2646.9,2646.7,0.7611]
[1727376359301,3.77814,2646.8,2646.4,0.7611]
[1727376359617,3.77832,2646.7,2646.4,0.7611]
[1727376359919,3.77878,2646.4,2645.9,0.7611]
[1727376360077,3.77886,2646.3,2645.9,0.7611]
[1727376360514,3.77886,2646.3,2645.9,4.54051]
[1727376360820,3.77908,2646.2,2645.9,0.7611]
[1727376361312,4.156746,2646.3,2645.9,0.7611]
[1727376361477,0.377886,2646.3,2645.9,4.54046]
[1727376361676,3.77872,2646.4,2645.9,4.54046]
[1727376361905,1.572346,2646.6,2646.0,3.77926]
[1727376362109,3.77838,2646.7,2646.3,4.55934]
[1727376362314,3.77838,2646.7,2646.3,0.7805]
[1727376362613,0.377838,2646.6,2646.3,0.7805]
[1727376362912,4.156278,2646.6,2646.3,0.7805]
[1727376363117,4.156278,2646.6,2646.1,3.77906]
[1727376364053,3.84399908,2646.8,2646.3,3.77874]
[1727376364316,3.77801,2646.9,2646.6,0.7805]
[1727376364674,4.59833,2647.1,2646.6,0.7805]
[1727376364675,6.8437646,2647.0,2646.6,0.7805]
[1727376364878,3.5256576,2647.0,2646.6,0.7805]
[1727376365079,3.5256576,2647.0,2646.6,4.55891]
[1727376365302,3.5256576,2647.0,2646.6,0.7805]
[1727376365512,7.3035176,2647.0,2646.6,0.7805]
[1727376366486,4.88620476,2646.9,2646.6,0.7805]
[1727376368087,0.0658246,2647.0,2646.6,4.55893]
[1727376368301,3.77777,2647.1,2646.6,8.33728]
[1727376368490,3.77758,2647.2,2646.7,4.55877]
[1727376368921,4.59216176,2647.3,2646.7,0.7805]
[1727376369222,7.55581,2647.0,2646.7,0.7805]
[1727376369430,0.8205,2647.1,2646.5,0.7805]
[1727376369725,3.77822,2646.8,2646.5,0.7805]
[1727376369926,4.533837,2646.8,2646.5,0.7805]
[1727376371517,4.533837,2646.8,2646.1,3.77903]
[1727376371518,3.77845,2646.6,2646.2,0.7805]
[1727376372142,3.77845,2646.6,2645.9,0.7805]
[1727376372143,3.59075271,2646.6,2645.9,0.7805]
[1727376372348,3.14809771,2646.5,2645.9,0.7805]
[1727376372633,3.77873,2646.4,2645.9,0.7805]
[1727376372941,3.77889,2646.3,2645.9,0.7805]
[1727376373234,1.07057177,2646.3,2645.9,0.7805]
[1727376373545,1.07057177,2646.3,2645.9,4.55989]
[1727376373843,6.92671771,2646.5,2646.0,3.77928]
[1727376374000,6.54904271,2646.4,2645.9,4.55989]
[1727376374204,7.70161348,2646.4,2645.9,4.55989]
[1727376374902,2.7761031,2646.3,2645.9,4.55989]
[1727376375098,6.5550431,2646.3,2645.9,0.7805]
[1727376375303,1.14864039,2646.2,2645.9,0.7805]
[1727376376450,1.14864039,2646.2,2645.9,4.5599]
[1727376376945,3.77879,2646.4,2646.0,3.77924]
[1727376376946,2.7761031,2646.4,2646.0,3.77924]
[1727376377821,2.7761031,2646.5,2646.2,0.814]
[1727376378153,7.05750179,2646.8,2646.3,3.77878]
[1727376378154,2.7761031,2646.6,2646.3,3.77878]
[1727376378810,2.7761031,2646.6,2646.3,7.55753]
[1727376379013,2.7761031,2646.6,2646.3,3.77875]
[1727376379227,2.7761031,2646.7,2646.3,3.77875]
[1727376379433,2.7761031,2646.6,2646.3,7.55749]
[1727376379641,2.7761031,2646.7,2646.3,7.55749]
[1727376379851,2.77602153,2646.6,2646.3,3.77874]
[1727376380141,3.77816,2646.8,2646.3,3.77874]
[1727376380142,2.77602153,2646.7,2646.3,3.77874]
[1727376380443,2.77602153,2646.6,2646.3,7.5575]
[1727376380845,2.77602153,2646.7,2646.3,3.77874]
[1727376381053,2.77602153,2646.7,2646.3,7.55751]
[1727376381616,2.77602153,2646.7,2646.6,3.77843]
[1727376381911,2.77602153,2646.9,2646.6,3.77842]
[1727376382454,2.77602153,2647.0,2646.6,3.77842]
[1727376382635,2.77602153,2647.0,2646.5,3.77855]
[1727376382636,2.77602153,2647.0,2646.7,3.77827]
[1727376382839,3.77779,2647.1,2646.5,3.77855]
[1727376382840,2.77602153,2646.9,2646.5,3.77849]
[1727376383052,2.77602153,2647.0,2646.6,3.77836]
[1727376383254,3.77779,2647.1,2646.6,3.77836]
[1727376383255,2.77602153,2646.9,2646.6,3.77836]
[1727376384925,2.77602153,2647.0,2646.6,3.77836]
[1727376385121,2.77587977,2647.0,2646.6,3.77836]
[1727376385379,3.77779,2647.1,2646.6,3.77836]
[1727376385380,2.77587977,2646.9,2646.6,3.77836]
[1727376386026,3.77779,2647.1,2646.6,3.77836]
[1727376386348,3.77789,2647.0,2646.6,3.77836]
[1727376386531,2.77603482,2646.9,2646.6,3.77836]
[1727376387745,6.55392482,2647.0,2646.6,3.77836]
[1727376388128,2.77603482,2646.9,2646.6,3.77836]
[1727376390978,2.77603482,2646.9,2646.6,7.55672]
[1727376391177,2.77603482,2646.9,2646.6,3.77836]
[1727376391364,6.55389482,2647.0,2646.6,3.77836]
[1727376391568,2.77603482,2647.0,2646.6,3.77831]
[1727376391770,6.55396482,2647.0,2646.6,3.77831]
[1727376391969,2.77603482,2646.9,2646.6,7.55665]
[1727376392143,2.77603482,2647.0,2646.6,7.55665]
[1727376392343,6.55389482,2647.0,2646.6,3.77831]
[1727376392568,2.77603482,2646.9,2646.6,3.77831]
[1727376395284,2.77603482,2646.9,2646.8,4.26202023]
[1727376395446,0.06582178,2647.2,2647.1,4.55281]
[1727376395647,2.77603482,2647.5,2647.4,0.7751]
[1727376395964,2.77603482,2647.8,2647.6,4.5521]
[1727376396165,24.873502,2647.7,2647.6,4.5521]
[1727376396371,50.487792,2648.0,2647.7,7.55362]
[1727376396569,2.77603482,2648.2,2647.6,0.7751]
[1727376396754,50.487792,2648.1,2647.6,0.7751]
[1727376396967,50.487792,2648.1,2647.6,4.55208]
[1727376396968,53.26382682,2648.1,2647.6,4.55208]
[1727376397140,50.487792,2648.1,2647.6,4.55208]
[1727376397345,50.487792,2648.0,2647.6,4.55208]
[1727376397645,6.55220482,2648.2,2647.6,4.55208]
[1727376398159,2.77603482,2648.3,2647.7,3.77682]
[1727376398785,3.77601,2648.3,2647.7,3.77682]
[1727376398966,6.55204482,2648.3,2647.7,3.77682]
[1727376399563,3.77623,2648.2,2647.6,0.7751]
[1727376399757,3.77643,2648.0,2647.6,0.7751]
[1727376400466,3.77623,2648.2,2647.6,0.7751]
[1727376400658,7.55248,2648.2,2647.6,0.7751]
[1727376400983,3.7763,2648.1,2647.6,0.7751]
[1727376401284,4.8082963,2648.1,2647.6,0.7751]
[1727376401871,3.77645,2648.0,2647.6,0.7751]
[1727376402047,1.8490963,2648.1,2647.2,0.7751]
[1727376402048,3.77693,2647.7,2647.2,0.7751]
[1727376402251,1.8490963,2648.1,2647.4,3.77719]
[1727376402482,0.39446669,2648.0,2647.7,0.7751]
[1727376403489,4.8083663,2648.1,2647.7,0.7751]
[1727376405181,4.63497063,2648.0,2647.7,0.7751]
[1727376405395,3.77651,2648.0,2647.7,0.7751]
[1727376405694,7.55302,2648.0,2647.7,0.7751]
[1727376405850,3.7768,2647.8,2647.4,0.8174]
[1727376406054,7.55362,2647.8,2647.4,0.8174]